[Event "Titled Tuesday Blitz November 14 Early 2023"]
[White "Ahmad, Khagan"]
[Black "Klukin, Kirill"]
[WhiteFideId "13431552"]
[BlackFideId "24199273"]
[WhiteElo "2642"]
[BlackElo "2855"]
[Result "0-1"]
[Round "11"]
[TimeControl "180+1"]
[Date "2023.11.14"]
[WhiteClock "0:00:01"]
[BlackClock "0:00:08"]
[Board "24"]

1. Nf3 {[%clk 0:02:45]}  c5 {[%clk 0:02:59]} 2. c4 {[%clk 0:02:45]}  Nc6 {[%clk 0:02:59]} 3. Nc3 {[%clk 0:02:45]}  g6 {[%clk 0:02:59]} 4. g3 {[%clk 0:02:44]}  Bg7 {[%clk 0:02:59]} 5. Bg2 {[%clk 0:02:45]}  a6 {[%clk 0:03:00]} 6. O-O {[%clk 0:02:45]}  Rb8 {[%clk 0:03:01]} 7. e3 {[%clk 0:02:39]}  e5 {[%clk 0:03:01]} 8. d4 {[%clk 0:02:39]}  d6 {[%clk 0:02:43]} 9. dxc5 {[%clk 0:02:29]}  dxc5 {[%clk 0:02:43]} 10. Qxd8+ {[%clk 0:02:29]}  Nxd8 {[%clk 0:02:42]} 11. Ng5 {[%clk 0:02:25]}  Nf6 {[%clk 0:02:19]} 12. Nge4 {[%clk 0:02:18]}  Nxe4 {[%clk 0:02:18]} 13. Nxe4 {[%clk 0:02:17]}  Ne6 {[%clk 0:02:16]} 14. b3 {[%clk 0:02:13]}  Ke7 {[%clk 0:02:15]} 15. Ba3 {[%clk 0:02:12]}  b6 {[%clk 0:02:04]} 16. Nc3 {[%clk 0:02:12]}  Rd8 {[%clk 0:01:41]} 17. Rad1 {[%clk 0:02:08]}  f5 {[%clk 0:01:26]} 18. Bb2 {[%clk 0:01:49]}  e4 {[%clk 0:01:11]} 19. Nd5+ {[%clk 0:01:44]}  Kf7 {[%clk 0:01:11]} 20. Bxg7 {[%clk 0:01:43]}  Kxg7 {[%clk 0:01:04]} 21. Rd2 {[%clk 0:01:35]}  Bb7 {[%clk 0:01:01]} 22. Rfd1 {[%clk 0:01:35]}  Bxd5 {[%clk 0:00:56]} 23. cxd5 {[%clk 0:01:32]}  Nc7 {[%clk 0:00:55]} 24. d6 {[%clk 0:01:32]}  Ne6 {[%clk 0:00:47]} 25. Bf1 {[%clk 0:01:26]}  b5 {[%clk 0:00:47]} 26. Rd5 {[%clk 0:01:26]}  Rb6 {[%clk 0:00:46]} 27. g4 {[%clk 0:01:25]}  Kf6 {[%clk 0:00:44]} 28. gxf5 {[%clk 0:01:24]}  gxf5 {[%clk 0:00:45]} 29. Bh3 {[%clk 0:01:25]}  Ng7 {[%clk 0:00:43]} 30. d7 {[%clk 0:01:22]}  Rc6 {[%clk 0:00:33]} 31. f4 {[%clk 0:00:57]}  exf3 {[%clk 0:00:23]} 32. Kf2 {[%clk 0:00:57]}  c4 {[%clk 0:00:23]} 33. bxc4 {[%clk 0:00:49]}  bxc4 {[%clk 0:00:24]} 34. Kxf3 {[%clk 0:00:40]}  c3 {[%clk 0:00:25]} 35. Rd6+ {[%clk 0:00:36]}  Rxd6 {[%clk 0:00:25]} 36. Rxd6+ {[%clk 0:00:36]}  Ke7 {[%clk 0:00:26]} 37. Rxa6 {[%clk 0:00:30]}  Rxd7 {[%clk 0:00:23]} 38. Rc6 {[%clk 0:00:31]}  Rd2 {[%clk 0:00:23]} 39. Rxc3 {[%clk 0:00:18]}  Rxh2 {[%clk 0:00:23]} 40. Bg2 {[%clk 0:00:18]}  Rh4 {[%clk 0:00:20]} 41. a3 {[%clk 0:00:12]}  Kf6 {[%clk 0:00:20]} 42. Bf1 {[%clk 0:00:11]}  Ra4 {[%clk 0:00:16]} 43. Rc6+ {[%clk 0:00:09]}  Kg5 {[%clk 0:00:12]} 44. Ra6 {[%clk 0:00:10]}  Rh4 {[%clk 0:00:08]} 45. a4 {[%clk 0:00:08]}  Nh5 {[%clk 0:00:06]} 46. a5 {[%clk 0:00:06]}  Nf6 {[%clk 0:00:07]} 47. Ra7 {[%clk 0:00:05]}  Ra4 {[%clk 0:00:07]} 48. a6 {[%clk 0:00:06]}  Ra3 {[%clk 0:00:08]} 49. Rg7+ {[%clk 0:00:05]}  Kh6 {[%clk 0:00:08]} 50. Rf7 {[%clk 0:00:04]}  Kg6 {[%clk 0:00:08]} 51. Bc4 {[%clk 0:00:04]}  Ng4 {[%clk 0:00:07]} 52. Kf4 {[%clk 0:00:04]}  Nxe3 {[%clk 0:00:07]} 53. Be6 {[%clk 0:00:05]}  Rxa6 {[%clk 0:00:05]} 54. Re7 {[%clk 0:00:02]}  Ra3 {[%clk 0:00:03]} 55. Bd7 {[%clk 0:00:01]}  Ng2+ {[%clk 0:00:03]} 56. Ke5 {[%clk 0:00:01]}  Re3+ {[%clk 0:00:04]} 57. Kd6 {[%clk 0:00:02]}  Rxe7 {[%clk 0:00:05]} 58. Kxe7 {[%clk 0:00:02]}  Kg5 {[%clk 0:00:05]} 59. Bc6 {[%clk 0:00:02]}  Ne3 {[%clk 0:00:04]} 60. Ke6 {[%clk 0:00:03]}  Kf4 {[%clk 0:00:04]} 61. Kf6 {[%clk 0:00:03]}  h5 {[%clk 0:00:05]} 62. Kg6 {[%clk 0:00:03]}  h4 {[%clk 0:00:06]} 63. Kh5 {[%clk 0:00:04]}  Kg3 {[%clk 0:00:06]} 64. Kg5 {[%clk 0:00:03]}  f4 {[%clk 0:00:07]} 65. Bh1 {[%clk 0:00:02]}  h3 {[%clk 0:00:07]} 66. Kf6 {[%clk 0:00:02]}  f3 {[%clk 0:00:08]} 67. Ke5 {[%clk 0:00:01]}  f2 {[%clk 0:00:08]} 0-1


[Site "https://www.chess.com"]

[Event "Titled Tuesday Blitz November 14 Early 2023"]
[White "Kozak, Antoni"]
[Black "Remolar Gallen, Jose"]
[WhiteFideId "21832030"]
[BlackFideId "2215187"]
[WhiteElo "2850"]
[BlackElo "2501"]
[Result "1-0"]
[Round "11"]
[TimeControl "180+1"]
[Date "2023.11.14"]
[WhiteClock "0:00:14"]
[BlackClock "0:00:00"]
[Board "25"]

1. Nf3 {[%clk 0:03:00]}  g6 {[%clk 0:02:53]} 2. c4 {[%clk 0:03:00]}  Bg7 {[%clk 0:02:54]} 3. Nc3 {[%clk 0:03:01]}  Nf6 {[%clk 0:02:53]} 4. e4 {[%clk 0:03:01]}  d6 {[%clk 0:02:54]} 5. d4 {[%clk 0:03:01]}  O-O {[%clk 0:02:55]} 6. h3 {[%clk 0:03:00]}  e5 {[%clk 0:02:54]} 7. d5 {[%clk 0:03:00]}  Na6 {[%clk 0:02:54]} 8. Bg5 {[%clk 0:02:54]}  h6 {[%clk 0:02:54]} 9. Be3 {[%clk 0:02:54]}  Nc5 {[%clk 0:02:55]} 10. Nd2 {[%clk 0:02:54]}  a5 {[%clk 0:02:55]} 11. g4 {[%clk 0:02:51]}  Ne8 {[%clk 0:02:52]} 12. Be2 {[%clk 0:02:47]}  Kh7 {[%clk 0:02:49]} 13. Qc2 {[%clk 0:02:45]}  f5 {[%clk 0:02:42]} 14. gxf5 {[%clk 0:02:45]}  gxf5 {[%clk 0:02:43]} 15. O-O-O {[%clk 0:02:33]}  f4 {[%clk 0:02:42]} 16. Bxc5 {[%clk 0:02:33]}  dxc5 {[%clk 0:02:43]} 17. Bg4 {[%clk 0:02:33]}  Nd6 {[%clk 0:02:40]} 18. Rdg1 {[%clk 0:02:32]}  Bf6 {[%clk 0:02:07]} 19. Qd1 {[%clk 0:02:25]}  Qe7 {[%clk 0:01:59]} 20. b3 {[%clk 0:02:19]}  b6 {[%clk 0:01:57]} 21. Bxc8 {[%clk 0:02:15]}  Raxc8 {[%clk 0:01:57]} 22. Qh5 {[%clk 0:02:15]}  Rg8 {[%clk 0:01:54]} 23. Nf3 {[%clk 0:02:15]}  a4 {[%clk 0:01:47]} 24. Nxa4 {[%clk 0:02:02]}  Ra8 {[%clk 0:01:10]} 25. Nc3 {[%clk 0:01:57]}  Qd7 {[%clk 0:01:07]} 26. h4 {[%clk 0:01:47]}  Rxg1+ {[%clk 0:00:44]} 27. Rxg1 {[%clk 0:01:46]}  Rg8 {[%clk 0:00:44]} 28. Rxg8 {[%clk 0:01:40]}  Kxg8 {[%clk 0:00:44]} 29. Qg6+ {[%clk 0:01:13]}  Bg7 {[%clk 0:00:42]} 30. Nb5 {[%clk 0:01:05]}  Nxb5 {[%clk 0:00:27]} 31. cxb5 {[%clk 0:01:05]}  Qh3 {[%clk 0:00:28]} 32. Qe6+ {[%clk 0:01:04]}  Qxe6 {[%clk 0:00:25]} 33. dxe6 {[%clk 0:01:04]}  Kf8 {[%clk 0:00:25]} 34. h5 {[%clk 0:00:59]}  Ke7 {[%clk 0:00:26]} 35. Nh4 {[%clk 0:00:59]}  Kxe6 {[%clk 0:00:25]} 36. Nf5 {[%clk 0:01:00]}  Bf8 {[%clk 0:00:23]} 37. Nh4 {[%clk 0:00:54]}  Kf6 {[%clk 0:00:22]} 38. Nf3 {[%clk 0:00:55]}  c4 {[%clk 0:00:11]} 39. bxc4 {[%clk 0:00:29]}  Bc5 {[%clk 0:00:11]} 40. Kd2 {[%clk 0:00:29]}  Bxf2 {[%clk 0:00:11]} 41. Ke2 {[%clk 0:00:30]}  Bc5 {[%clk 0:00:11]} 42. Kf1 {[%clk 0:00:30]}  Ke6 {[%clk 0:00:10]} 43. Kg2 {[%clk 0:00:30]}  Be3 {[%clk 0:00:06]} 44. Kh3 {[%clk 0:00:30]}  Kf6 {[%clk 0:00:07]} 45. Kg4 {[%clk 0:00:31]}  Bf2 {[%clk 0:00:07]} 46. a4 {[%clk 0:00:29]}  Bc5 {[%clk 0:00:07]} 47. Ne1 {[%clk 0:00:28]}  Ke6 {[%clk 0:00:05]} 48. Nd3 {[%clk 0:00:28]}  Ba3 {[%clk 0:00:04]} 49. Ne1 {[%clk 0:00:21]}  Bc5 {[%clk 0:00:04]} 50. Nf3 {[%clk 0:00:22]}  Bd6 {[%clk 0:00:04]} 51. Nh4 {[%clk 0:00:22]}  Kf6 {[%clk 0:00:04]} 52. Nf5 {[%clk 0:00:21]}  Bf8 {[%clk 0:00:04]} 53. Kh4 {[%clk 0:00:21]}  Ke6 {[%clk 0:00:05]} 54. Kh3 {[%clk 0:00:21]}  Kf6 {[%clk 0:00:05]} 55. Kg4 {[%clk 0:00:22]}  Ke6 {[%clk 0:00:06]} 56. Nh4 {[%clk 0:00:18]}  Bc5 {[%clk 0:00:04]} 57. Nf3 {[%clk 0:00:16]}  Kf6 {[%clk 0:00:04]} 58. Nd2 {[%clk 0:00:16]}  Ke6 {[%clk 0:00:03]} 59. Nb3 {[%clk 0:00:15]}  Be7 {[%clk 0:00:04]} 60. Nc1 {[%clk 0:00:15]}  Ba3 {[%clk 0:00:03]} 61. Ne2 {[%clk 0:00:15]}  Bb4 {[%clk 0:00:04]} 62. Kh4 {[%clk 0:00:15]}  Kf6 {[%clk 0:00:04]} 63. Kg4 {[%clk 0:00:15]}  Ke6 {[%clk 0:00:04]} 64. Kf3 {[%clk 0:00:14]}  Bc5 {[%clk 0:00:00]} 65. Nc3 {[%clk 0:00:14]} 1-0


[Site "https://www.chess.com"]

[Event "Titled Tuesday Blitz November 14 Early 2023"]
[White "Alexandre, Anne Shopie Elizabeth"]
[Black "Begmuratov, Alisher"]
[WhiteFideId "11902418"]
[BlackFideId "14203367"]
[WhiteElo "2835"]
[BlackElo "2720"]
[Result "0-1"]
[Round "11"]
[TimeControl "180+1"]
[Date "2023.11.14"]
[WhiteClock "0:00:15"]
[BlackClock "0:00:15"]
[Board "28"]

1. d4 {[%clk 0:03:00]}  Nf6 {[%clk 0:02:59]} 2. c4 {[%clk 0:03:01]}  e6 {[%clk 0:02:59]} 3. Nf3 {[%clk 0:03:00]}  Bb4+ {[%clk 0:02:58]} 4. Bd2 {[%clk 0:03:00]}  Qe7 {[%clk 0:02:58]} 5. a3 {[%clk 0:02:59]}  Bxd2+ {[%clk 0:02:57]} 6. Qxd2 {[%clk 0:02:59]}  O-O {[%clk 0:02:56]} 7. Nc3 {[%clk 0:03:00]}  d6 {[%clk 0:02:56]} 8. e4 {[%clk 0:03:00]}  e5 {[%clk 0:02:56]} 9. d5 {[%clk 0:03:00]}  a5 {[%clk 0:02:56]} 10. b3 {[%clk 0:02:58]}  Bg4 {[%clk 0:02:55]} 11. Be2 {[%clk 0:02:56]}  Na6 {[%clk 0:02:49]} 12. O-O {[%clk 0:02:56]}  Nc5 {[%clk 0:02:48]} 13. Qc2 {[%clk 0:02:57]}  Bxf3 {[%clk 0:02:33]} 14. Bxf3 {[%clk 0:02:57]}  g6 {[%clk 0:02:34]} 15. b4 {[%clk 0:02:56]}  Na6 {[%clk 0:02:33]} 16. Rab1 {[%clk 0:02:56]}  Nd7 {[%clk 0:02:30]} 17. Bg4 {[%clk 0:02:50]}  Nf6 {[%clk 0:02:17]} 18. Be2 {[%clk 0:02:49]}  Ne8 {[%clk 0:02:14]} 19. bxa5 {[%clk 0:02:33]}  Nc5 {[%clk 0:02:06]} 20. Na4 {[%clk 0:02:33]}  Rxa5 {[%clk 0:01:57]} 21. Nxc5 {[%clk 0:02:32]}  dxc5 {[%clk 0:01:58]} 22. Rxb7 {[%clk 0:02:32]}  Rxa3 {[%clk 0:01:57]} 23. Rfb1 {[%clk 0:02:27]}  Nd6 {[%clk 0:01:56]} 24. R7b3 {[%clk 0:02:27]}  Ra6 {[%clk 0:01:42]} 25. g3 {[%clk 0:02:24]}  Rfa8 {[%clk 0:01:41]} 26. h4 {[%clk 0:02:24]}  h5 {[%clk 0:01:39]} 27. Rb8+ {[%clk 0:02:22]}  Kg7 {[%clk 0:01:38]} 28. Rxa8 {[%clk 0:02:22]}  Rxa8 {[%clk 0:01:39]} 29. Bd3 {[%clk 0:02:23]}  f6 {[%clk 0:01:38]} 30. Qc3 {[%clk 0:02:16]}  Qd7 {[%clk 0:01:33]} 31. Qb3 {[%clk 0:02:12]}  Qg4 {[%clk 0:01:30]} 32. Qc2 {[%clk 0:02:09]}  Qf3 {[%clk 0:01:26]} 33. Re1 {[%clk 0:01:54]}  Ra3 {[%clk 0:01:20]} 34. Re3 {[%clk 0:01:54]}  Ra1+ {[%clk 0:01:14]} 35. Bf1 {[%clk 0:01:55]}  Qg4 {[%clk 0:01:08]} 36. Kg2 {[%clk 0:01:55]}  Qc8 {[%clk 0:01:02]} 37. Qb2 {[%clk 0:01:51]}  Qa8 {[%clk 0:01:00]} 38. Bd3 {[%clk 0:01:37]}  Ra2 {[%clk 0:00:57]} 39. Qb1 {[%clk 0:01:35]}  Ra3 {[%clk 0:00:55]} 40. Re2 {[%clk 0:01:28]}  Ra1 {[%clk 0:00:51]} 41. Qb3 {[%clk 0:01:24]}  Qa3 {[%clk 0:00:49]} 42. Rb2 {[%clk 0:01:22]}  Qxb3 {[%clk 0:00:36]} 43. Rxb3 {[%clk 0:01:22]}  f5 {[%clk 0:00:37]} 44. exf5 {[%clk 0:01:18]}  gxf5 {[%clk 0:00:36]} 45. Be2 {[%clk 0:01:17]}  e4 {[%clk 0:00:36]} 46. Bxh5 {[%clk 0:01:15]}  Kf6 {[%clk 0:00:32]} 47. Be2 {[%clk 0:01:14]}  Ke5 {[%clk 0:00:32]} 48. h5 {[%clk 0:01:12]}  Ra8 {[%clk 0:00:31]} 49. Rb1 {[%clk 0:01:08]}  Kd4 {[%clk 0:00:29]} 50. Rd1+ {[%clk 0:01:08]}  Kc3 {[%clk 0:00:29]} 51. Kh3 {[%clk 0:01:03]}  Ra2 {[%clk 0:00:22]} 52. Bf1 {[%clk 0:01:03]}  Rxf2 {[%clk 0:00:19]} 53. h6 {[%clk 0:01:02]}  Nf7 {[%clk 0:00:18]} 54. Kh4 {[%clk 0:00:54]}  Rh2+ {[%clk 0:00:17]} 55. Bh3 {[%clk 0:00:53]}  Nxh6 {[%clk 0:00:17]} 56. Rc1+ {[%clk 0:00:49]}  Kd2 {[%clk 0:00:16]} 57. Ra1 {[%clk 0:00:48]}  Ke3 {[%clk 0:00:15]} 58. Ra7 {[%clk 0:00:45]}  Ng4 {[%clk 0:00:15]} 59. Rxc7 {[%clk 0:00:43]}  Ne5 {[%clk 0:00:15]} 60. d6 {[%clk 0:00:33]}  Nf3+ {[%clk 0:00:14]} 61. Kh5 {[%clk 0:00:33]}  Rxh3+ {[%clk 0:00:15]} 62. Kg6 {[%clk 0:00:33]}  Rxg3+ {[%clk 0:00:15]} 63. Kxf5 {[%clk 0:00:33]}  Nd4+ {[%clk 0:00:15]} 64. Ke5 {[%clk 0:00:31]}  Rg5+ {[%clk 0:00:15]} 65. Kf6 {[%clk 0:00:31]}  Kf4 {[%clk 0:00:15]} 66. d7 {[%clk 0:00:29]}  Rf5+ {[%clk 0:00:15]} 67. Ke7 {[%clk 0:00:29]}  Re5+ {[%clk 0:00:15]} 68. Kf6 {[%clk 0:00:29]}  Re6+ {[%clk 0:00:14]} 69. Kf7 {[%clk 0:00:29]}  Rd6 {[%clk 0:00:14]} 70. Ke7 {[%clk 0:00:29]}  Nf5+ {[%clk 0:00:14]} 71. Ke8 {[%clk 0:00:29]}  e3 {[%clk 0:00:15]} 72. Ra7 {[%clk 0:00:27]}  e2 {[%clk 0:00:15]} 73. Ra1 {[%clk 0:00:27]}  Ke3 {[%clk 0:00:15]} 74. d8=Q {[%clk 0:00:26]}  Rxd8+ {[%clk 0:00:15]} 75. Kxd8 {[%clk 0:00:27]}  Kf2 {[%clk 0:00:15]} 76. Kd7 {[%clk 0:00:26]}  Nd4 {[%clk 0:00:16]} 77. Kd6 {[%clk 0:00:20]}  Nb3 {[%clk 0:00:15]} 78. Rb1 {[%clk 0:00:15]}  e1=Q {[%clk 0:00:15]} 0-1


[Site "https://www.chess.com"]

[Event "Titled Tuesday Blitz November 14 Early 2023"]
[White "Hasangatin, Ramil"]
[Black "mind1mover"]
[WhiteFideId "4122160"]
[WhiteElo "2694"]
[BlackElo "2829"]
[Result "0-1"]
[Round "11"]
[TimeControl "180+1"]
[Date "2023.11.14"]
[WhiteClock "0:01:21"]
[BlackClock "0:01:09"]
[Board "29"]

1. e4 {[%clk 0:02:20]}  Nc6 {[%clk 0:03:00]} 2. Bb5 {[%clk 0:02:19]}  Nf6 {[%clk 0:02:59]} 3. Bxc6 {[%clk 0:02:18]}  bxc6 {[%clk 0:02:56]} 4. d3 {[%clk 0:02:19]}  g6 {[%clk 0:02:55]} 5. f4 {[%clk 0:02:18]}  d5 {[%clk 0:02:51]} 6. e5 {[%clk 0:02:17]}  Ng8 {[%clk 0:02:51]} 7. Nf3 {[%clk 0:02:17]}  c5 {[%clk 0:02:52]} 8. c4 {[%clk 0:02:13]}  Bg7 {[%clk 0:02:44]} 9. Nc3 {[%clk 0:02:13]}  c6 {[%clk 0:02:40]} 10. O-O {[%clk 0:02:07]}  Nh6 {[%clk 0:02:39]} 11. Na4 {[%clk 0:02:06]}  O-O {[%clk 0:02:29]} 12. b3 {[%clk 0:02:06]}  Bg4 {[%clk 0:02:13]} 13. Kh1 {[%clk 0:02:04]}  f6 {[%clk 0:02:13]} 14. Bb2 {[%clk 0:02:02]}  Nf5 {[%clk 0:02:04]} 15. Qe1 {[%clk 0:02:00]}  d4 {[%clk 0:01:59]} 16. Bc1 {[%clk 0:01:51]}  Bxf3 {[%clk 0:01:40]} 17. Rxf3 {[%clk 0:01:51]}  fxe5 {[%clk 0:01:40]} 18. fxe5 {[%clk 0:01:50]}  Ne3 {[%clk 0:01:36]} 19. Rxf8+ {[%clk 0:01:46]}  Qxf8 {[%clk 0:01:37]} 20. Bxe3 {[%clk 0:01:46]}  dxe3 {[%clk 0:01:38]} 21. Qxe3 {[%clk 0:01:46]}  Qf5 {[%clk 0:01:38]} 22. Re1 {[%clk 0:01:45]}  Rf8 {[%clk 0:01:37]} 23. h3 {[%clk 0:01:41]}  Qh5 {[%clk 0:01:21]} 24. Nxc5 {[%clk 0:01:38]}  Bh6 {[%clk 0:01:21]} 25. Qe4 {[%clk 0:01:29]}  Bd2 {[%clk 0:01:12]} 26. Rd1 {[%clk 0:01:21]}  Qxd1+ {[%clk 0:01:09]} 0-1


[Site "https://www.chess.com"]

[Event "Titled Tuesday Blitz November 14 Early 2023"]
[White "Xu, Yi"]
[Black "Dowgird, Filip"]
[WhiteFideId "8605564"]
[BlackFideId "1121235"]
[WhiteElo "2818"]
[BlackElo "2706"]
[Result "1-0"]
[Round "11"]
[TimeControl "180+1"]
[Date "2023.11.14"]
[WhiteClock "0:00:06"]
[BlackClock "0:00:16"]
[Board "30"]

1. e4 {[%clk 0:02:59]}  d6 {[%clk 0:02:59]} 2. d4 {[%clk 0:02:59]}  Nf6 {[%clk 0:02:59]} 3. Nc3 {[%clk 0:03:00]}  c6 {[%clk 0:03:00]} 4. f4 {[%clk 0:03:00]}  Qa5 {[%clk 0:03:00]} 5. Bd3 {[%clk 0:03:00]}  e5 {[%clk 0:03:00]} 6. Nf3 {[%clk 0:02:57]}  exd4 {[%clk 0:03:00]} 7. Nxd4 {[%clk 0:02:58]}  g6 {[%clk 0:03:01]} 8. Nb3 {[%clk 0:02:45]}  Qb6 {[%clk 0:03:01]} 9. h3 {[%clk 0:02:44]}  Bg7 {[%clk 0:03:01]} 10. Qe2 {[%clk 0:02:39]}  O-O {[%clk 0:03:01]} 11. Be3 {[%clk 0:02:39]}  Qc7 {[%clk 0:03:02]} 12. O-O {[%clk 0:02:38]}  b5 {[%clk 0:03:00]} 13. a3 {[%clk 0:02:38]}  a6 {[%clk 0:02:57]} 14. Rae1 {[%clk 0:02:38]}  Nbd7 {[%clk 0:02:56]} 15. Qf2 {[%clk 0:02:26]}  Bb7 {[%clk 0:02:51]} 16. e5 {[%clk 0:01:57]}  dxe5 {[%clk 0:02:51]} 17. fxe5 {[%clk 0:01:57]}  Nxe5 {[%clk 0:02:51]} 18. Bb6 {[%clk 0:01:32]}  Nxd3 {[%clk 0:02:51]} 19. cxd3 {[%clk 0:01:31]}  Qb8 {[%clk 0:02:41]} 20. Re7 {[%clk 0:01:28]}  Bc8 {[%clk 0:02:15]} 21. Bc5 {[%clk 0:01:20]}  Be6 {[%clk 0:01:53]} 22. Nd4 {[%clk 0:01:02]}  Qc8 {[%clk 0:01:31]} 23. Nxe6 {[%clk 0:00:57]}  fxe6 {[%clk 0:01:31]} 24. Rxg7+ {[%clk 0:00:40]}  Kxg7 {[%clk 0:01:30]} 25. Bxf8+ {[%clk 0:00:27]}  Qxf8 {[%clk 0:01:31]} 26. Qd4 {[%clk 0:00:22]}  Rd8 {[%clk 0:01:27]} 27. Qe5 {[%clk 0:00:21]}  Qe7 {[%clk 0:00:53]} 28. Ne4 {[%clk 0:00:19]}  Rf8 {[%clk 0:00:53]} 29. g4 {[%clk 0:00:20]}  h6 {[%clk 0:00:51]} 30. h4 {[%clk 0:00:20]}  Qa7+ {[%clk 0:00:29]} 31. d4 {[%clk 0:00:12]}  Qb8 {[%clk 0:00:22]} 32. Rxf6 {[%clk 0:00:10]}  Qxe5 {[%clk 0:00:22]} 33. dxe5 {[%clk 0:00:10]}  Rd8 {[%clk 0:00:22]} 34. Rxe6 {[%clk 0:00:08]}  Rd4 {[%clk 0:00:23]} 35. Nf6 {[%clk 0:00:05]}  c5 {[%clk 0:00:20]} 36. Rxa6 {[%clk 0:00:05]}  h5 {[%clk 0:00:20]} 37. Ra7+ {[%clk 0:00:06]}  Kf8 {[%clk 0:00:16]} 38. e6 {[%clk 0:00:06]} 1-0


[Site "https://www.chess.com"]

[Event "Titled Tuesday Blitz November 14 Early 2023"]
[White "Hristodoulou, Panagiotis"]
[Black "Suyarov, Mukhammadzokhid"]
[WhiteFideId "4214340"]
[BlackFideId "14210495"]
[WhiteElo "2662"]
[BlackElo "2784"]
[Result "0-1"]
[Round "11"]
[TimeControl "180+1"]
[Date "2023.11.14"]
[WhiteClock "0:01:01"]
[BlackClock "0:00:58"]
[Board "31"]

1. e4 {[%clk 0:02:56]}  e6 {[%clk 0:02:58]} 2. d4 {[%clk 0:02:56]}  d5 {[%clk 0:02:58]} 3. Nc3 {[%clk 0:02:56]}  Nf6 {[%clk 0:02:58]} 4. Bg5 {[%clk 0:02:56]}  Be7 {[%clk 0:02:58]} 5. Bxf6 {[%clk 0:02:33]}  Bxf6 {[%clk 0:02:56]} 6. Nf3 {[%clk 0:02:34]}  O-O {[%clk 0:02:55]} 7. Be2 {[%clk 0:02:31]}  c5 {[%clk 0:02:52]} 8. exd5 {[%clk 0:02:31]}  cxd4 {[%clk 0:02:52]} 9. Nxd4 {[%clk 0:02:30]}  exd5 {[%clk 0:02:53]} 10. O-O {[%clk 0:02:28]}  Nc6 {[%clk 0:02:51]} 11. Nxc6 {[%clk 0:02:29]}  bxc6 {[%clk 0:02:52]} 12. Bd3 {[%clk 0:02:29]}  Rb8 {[%clk 0:02:52]} 13. Rb1 {[%clk 0:02:29]}  Qa5 {[%clk 0:02:44]} 14. Qf3 {[%clk 0:02:15]}  Be6 {[%clk 0:02:43]} 15. Ne2 {[%clk 0:02:12]}  Bxb2 {[%clk 0:02:40]} 16. Nf4 {[%clk 0:02:05]}  Bd7 {[%clk 0:02:35]} 17. c4 {[%clk 0:02:05]}  Qxa2 {[%clk 0:02:23]} 18. cxd5 {[%clk 0:02:05]}  cxd5 {[%clk 0:02:19]} 19. Nxd5 {[%clk 0:02:05]}  Kh8 {[%clk 0:02:00]} 20. Bxh7 {[%clk 0:01:51]}  g6 {[%clk 0:01:39]} 21. Bxg6 {[%clk 0:01:17]}  fxg6 {[%clk 0:01:35]} 22. Qe4 {[%clk 0:01:18]}  Bf5 {[%clk 0:01:30]} 23. Qh4+ {[%clk 0:01:17]}  Kg7 {[%clk 0:01:30]} 24. Qe7+ {[%clk 0:01:09]}  Rf7 {[%clk 0:01:27]} 25. Qd6 {[%clk 0:01:08]}  Rbb7 {[%clk 0:01:03]} 26. Rbe1 {[%clk 0:01:01]}  Rbd7 {[%clk 0:00:58]} 0-1


[Site "https://www.chess.com"]

[Event "Titled Tuesday Blitz November 14 Early 2023"]
[White "Panchenko, Dmitry"]
[Black "Samunenkov, Ihor"]
[WhiteFideId "4169158"]
[BlackFideId "14187086"]
[WhiteElo "2750"]
[BlackElo "2767"]
[Result "1/2-1/2"]
[Round "11"]
[TimeControl "180+1"]
[Date "2023.11.14"]
[WhiteClock "0:00:41"]
[BlackClock "0:00:06"]
[Board "32"]

1. e4 {[%clk 0:02:51]}  c6 {[%clk 0:02:59]} 2. d4 {[%clk 0:02:50]}  d5 {[%clk 0:03:00]} 3. exd5 {[%clk 0:02:50]}  cxd5 {[%clk 0:03:01]} 4. Nf3 {[%clk 0:02:51]}  Nc6 {[%clk 0:03:01]} 5. Bb5 {[%clk 0:02:50]}  Bg4 {[%clk 0:02:58]} 6. c4 {[%clk 0:02:48]}  Nf6 {[%clk 0:02:55]} 7. Nc3 {[%clk 0:02:42]}  e6 {[%clk 0:02:52]} 8. h3 {[%clk 0:02:43]}  Bxf3 {[%clk 0:02:51]} 9. Qxf3 {[%clk 0:02:44]}  a6 {[%clk 0:02:49]} 10. Ba4 {[%clk 0:02:37]}  Bb4 {[%clk 0:02:42]} 11. c5 {[%clk 0:02:35]}  O-O {[%clk 0:02:39]} 12. Bxc6 {[%clk 0:02:34]}  bxc6 {[%clk 0:02:39]} 13. O-O {[%clk 0:02:32]}  Bxc3 {[%clk 0:02:30]} 14. bxc3 {[%clk 0:02:32]}  Ne4 {[%clk 0:02:15]} 15. Bf4 {[%clk 0:02:26]}  Qa5 {[%clk 0:02:12]} 16. c4 {[%clk 0:02:18]}  Qa4 {[%clk 0:02:05]} 17. cxd5 {[%clk 0:02:18]}  exd5 {[%clk 0:02:06]} 18. Rfd1 {[%clk 0:02:12]}  Rfe8 {[%clk 0:01:54]} 19. a3 {[%clk 0:02:08]}  Re6 {[%clk 0:01:38]} 20. Rab1 {[%clk 0:01:47]}  h6 {[%clk 0:01:28]} 21. Be5 {[%clk 0:01:45]}  Rae8 {[%clk 0:01:15]} 22. Qg4 {[%clk 0:01:32]}  f6 {[%clk 0:00:44]} 23. Rb7 {[%clk 0:01:28]}  R6e7 {[%clk 0:00:41]} 24. Rxe7 {[%clk 0:01:27]}  Rxe7 {[%clk 0:00:42]} 25. Bd6 {[%clk 0:01:19]}  Re8 {[%clk 0:00:27]} 26. Rb1 {[%clk 0:01:15]}  Qxd4 {[%clk 0:00:26]} 27. Qg6 {[%clk 0:01:00]}  Qxf2+ {[%clk 0:00:10]} 28. Kh2 {[%clk 0:01:00]}  Nxd6 {[%clk 0:00:10]} 29. cxd6 {[%clk 0:00:59]}  Qf4+ {[%clk 0:00:09]} 30. Kh1 {[%clk 0:00:59]}  Rd8 {[%clk 0:00:08]} 31. Rb7 {[%clk 0:00:57]}  Qf1+ {[%clk 0:00:04]} 32. Kh2 {[%clk 0:00:57]}  Qf4+ {[%clk 0:00:05]} 33. Kh1 {[%clk 0:00:41]}  Qf1+ {[%clk 0:00:05]} 34. Kh2 {[%clk 0:00:41]}  Qf4+ {[%clk 0:00:06]} 35. Kh1 {[%clk 0:00:41]} 1/2-1/2


[Site "https://www.chess.com"]

[Event "Titled Tuesday Blitz November 14 Early 2023"]
[White "Sokolovsky, Yahli"]
[Black "YouShallNotPass001"]
[WhiteFideId "2820242"]
[WhiteElo "2765"]
[BlackElo "2477"]
[Result "1-0"]
[Round "11"]
[TimeControl "180+1"]
[Date "2023.11.14"]
[WhiteClock "0:02:00"]
[BlackClock "0:02:42"]
[Board "33"]

1. b3 {[%clk 0:02:52]}  e6 {[%clk 0:02:57]} 2. Bb2 {[%clk 0:02:53]}  Nf6 {[%clk 0:02:58]} 3. e3 {[%clk 0:02:50]}  d5 {[%clk 0:02:58]} 4. d4 {[%clk 0:02:49]}  Be7 {[%clk 0:02:59]} 5. Nf3 {[%clk 0:02:50]}  O-O {[%clk 0:02:59]} 6. Nbd2 {[%clk 0:02:50]}  c5 {[%clk 0:03:00]} 7. Bd3 {[%clk 0:02:51]}  Nc6 {[%clk 0:03:01]} 8. O-O {[%clk 0:02:51]}  a6 {[%clk 0:03:01]} 9. Ne5 {[%clk 0:02:51]}  Bd7 {[%clk 0:03:00]} 10. f4 {[%clk 0:02:51]}  b5 {[%clk 0:03:00]} 11. c3 {[%clk 0:02:36]}  b4 {[%clk 0:02:58]} 12. c4 {[%clk 0:02:32]}  cxd4 {[%clk 0:02:57]} 13. exd4 {[%clk 0:02:32]}  dxc4 {[%clk 0:02:55]} 14. bxc4 {[%clk 0:02:33]}  Rc8 {[%clk 0:02:55]} 15. Qf3 {[%clk 0:02:29]}  g6 {[%clk 0:02:50]} 16. Rad1 {[%clk 0:02:27]}  Re8 {[%clk 0:02:50]} 17. Qh3 {[%clk 0:02:23]}  Bf8 {[%clk 0:02:48]} 18. Ndf3 {[%clk 0:02:19]}  Bg7 {[%clk 0:02:48]} 19. Ng5 {[%clk 0:02:20]}  h6 {[%clk 0:02:48]} 20. Nexf7 {[%clk 0:02:02]}  hxg5 {[%clk 0:02:42]} 21. Nxd8 {[%clk 0:02:00]} 1-0


[Site "https://www.chess.com"]